Cogmind - Beta 12 @@@ ROGUE MODE // 2023.06.25 @ 12:19:33 Player: Smie Result: Destroyed by D-53 Grenadier with Mini Grenade Launcher Performance ------------- Evolutions (0) 0 Regions Visited (2) 400 Robots Destroyed (18) 90 Value Destroyed (346) 346 Prototype IDs (0) 0 Alien Tech Used (0) 0 Bonus (0) 0 TOTAL SCORE: 836 Bonus ------- None Cogmind --------- Core Integrity 0/250 Matter 255/300 Energy 244/250 System Corruption 3% Temperature Cool (0) Movement Walking (120) Location -10/Mines Parts ------- > --- POWER (1) -------- Ion Engine > --- PROPULSION (2) --- Aluminum Leg Aluminum Leg > --- UTILITY (2) ------ Medium Storage Unit > --- WEAPON (2) ------- EM Pulse Gun > --- INVENTORY (10) --- Ion Engine Aluminum Leg Aluminum Leg Large Battery (200) Weight Redist. System Visual Processing Unit Targeting Computer Propulsion Shielding EM Pulse Gun Mining Laser Peak State ------------ > --- POWER ------------ Ion Engine > --- PROPULSION ------- Aluminum Leg Aluminum Leg > --- UTILITY ---------- Heat Sink Medium Storage Unit > --- WEAPON ----------- EM Pulse Gun Mining Laser > --- INVENTORY -------- Ion Engine Aluminum Leg Aluminum Leg Weight Redist. System Visual Processing Unit Targeting Computer Propulsion Shielding EM Pulse Gun Grenade Launcher [Rating: 8] Favorites ----------- Power Ion Engine Engine Ion Engine Propulsion Aluminum Leg Leg Aluminum Leg Wheel Wheel Utility Small Storage Unit Device Heat Sink Storage Small Storage Unit Weapon EM Pulse Gun Energy Gun EM Pulse Gun Ballistic Gun Assault Rifle Launcher Grenade Launcher Special Weapon Mining Laser Build | -11 -10 -10 ------- Run | Jun Mat Min Slots Evolved . | . . . Power . | . . . Propulsion . | . . . Utility . | . . . Weapon . | . . . Parts Attached 28 | 6 22 . Power 2 | 1 1 . Engine 2 | 1 1 . Core . | . . . Reactor . | . . . Propulsion 7 | 2 5 . Treads . | . . . Leg 5 | . 5 . Wheel 2 | 2 . . Hover . | . . . Flight . | . . . Utility 4 | 1 3 . Device 2 | . 2 . Storage 2 | 1 1 . Processor . | . . . Hackware . | . . . Protection . | . . . Artifact . | . . . Weapon 15 | 2 13 . Energy Gun 8 | . 8 . Energy Cannon . | . . . Ballistic Gun 2 | 2 . . Ballistic Cannon . | . . . Launcher 2 | . 2 . Special Weapon 3 | . 3 . Impact Weapon . | . . . Slashing Weapon . | . . . Piercing Weapon . | . . . Special Melee Weapon . | . . . Unidentified Prototypes . | . . . Corrupted Parts 1 | . 1 . System Corruption 3 | . 3 . Parts Lost 5 | . 3 2 Power . | . . . Propulsion . | . . . Utility 2 | . 1 1 Weapon 3 | . 2 1 Highest Loss Streak 2 | . 2 2 To Critical Strikes . | . . . Average Slot Usage (%) 95 | . 95 92 Engine 14 | . 14 14 Leg 22 | . 22 28 Wheel 5 | . 5 . Device 10 | . 10 9 Storage 14 | . 14 14 Energy Gun 17 | . 17 14 Ballistic Gun 6 | . 6 . Special Weapon 3 | . 3 . Naked Turns . | . . . Heaviest Build 21 | 13 21 21 Greatest Support 20 | 20 20 20 Greatest Overweight (x) 1 | 1 1 1 Average Overweight (x) . | . . . Largest Inventory Capacity 10 | 8 10 10 Average Capacity 8 | 7 8 10 Most Carried 10 | 7 10 10 Average Carried 8 | 4 8 10 Final Capacity 10 | 8 10 10 Final Carried 10 | 7 10 10 Class Distribution -------------------- 100% | Mutant Dominant Class ---------------- Mutant | -10/Materials Mutant | -10/Mines Resources | -11 -10 -10 ----------- Run | Jun Mat Min Matter Collected 518 | 268 250 . Remotely . | . . . Salvage Created 519 | 71 448 . Parts 45 | 2 43 . Haulers Intercepted 2 | . 2 . Recyclers Shooed . | . . . Parts Field Recycled . | . . . Retrieved Matter . | . . . Parts Self-Destructed . | . . . Prevented . | . . . Kills | -11 -10 -10 ------- Run | Jun Mat Min Combat Hostiles Destroyed 11 | . 11 . Guns 10 | . 10 . AOE 1 | . 1 . Classes Destroyed 6 | 1 5 . Builder 1 | . 1 . Hauler 2 | . 2 . Recycler 1 | 1 . . Watcher 3 | . 3 . Swarmer 6 | . 6 . Grunt 5 | . 5 . Best Kill Streak 6 | 1 6 . Combat Bots Only 3 | . 3 . Max Kills in Single Turn 3 | 1 3 . Gunslinging . | . . . Exploded 1 | . 1 . Melee . | . . . Uniques/NPCs Destroyed . | . . . Combat | -11 -10 -10 -------- Run | Jun Mat Min Damage Taken 899 | . 530 369 Core 253 | . 71 182 Absorbed by Shields . | . . . Regen/Repaired (Parts) 31 | . 31 . Core Remaining (%) 100 | 100 . . Volleys Fired 54 | 2 48 4 Largest 2 | 2 2 1 Hottest 140 | 40 140 40 Shots Fired 94 | 4 86 4 Gun 83 | 4 75 4 Cannon . | . . . Launcher 2 | . 2 . Special 9 | . 9 . Kinetic 32 | 4 28 . Thermal 9 | . 9 . Explosive 2 | . 2 . Electromagnetic 51 | . 47 4 Robot Hit Streak 8 | 3 8 3 Robot Miss Streak 5 | . 5 2 Penetration Max . | . . . Secondary Targets . | . . . Shots Hit Robots 50 | 3 44 3 Core Hits 29 | 2 26 1 Critical Kills . | . . . Critical Parts Destroyed . | . . . Critical Strikes . | . . . Melee Attacks . | . . . Impact . | . . . Slashing . | . . . Piercing . | . . . Sneak Attacks . | . . . Combat Hostiles . | . . . Follow-up Attacks . | . . . Damage Inflicted 953 | 32 890 31 Guns 646 | 32 583 31 Cannons . | . . . Explosions 274 | . 274 . Melee . | . . . Ramming 9 | . 9 . Kinetic 198 | 32 166 . Thermal 157 | . 157 . Explosive 141 | . 141 . Electromagnetic 448 | . 417 31 Impact . | . . . Slashing . | . . . Piercing . | . . . Highest Corruption 3 | . 3 3 Average Corruption 3 | . 3 3 Corruption Purged . | . . . Corruption Blocked . | . . . Effects 16 | . 14 2 Message Errors 2 | . 2 . Matter Fused 3 | . 2 1 Heat Flow Errors 5 | . 5 . Energy Discharges 2 | . 2 . Data Loss (minor) 4 | . 3 1 Overload Shots . | . . . Overflow Damage 131 | . 131 . Projectiles 4 | . 4 . Explosions 127 | . 127 . Melee . | . . . Knockbacks . | . . . Impact . | . . . Kinetic . | . . . Secondary . | . . . Self-Inflicted Damage 211 | . 211 . Shots 4 | . 4 . Rammed . | . . . Targets Rammed 4 | . 4 . Kicked 4 | . 4 . Crushed . | . . . Highest Temperature 244 | . 244 4 Average Temperature 63 | . 64 3 Received Heat Transfer 150 | . 90 60 Siege Activations . | . . . Robots Corrupted . | . . . Combat Hostiles . | . . . Parts Fried 2 | . 2 . Impact Corruptions . | . . . Robots Melted . | . . . Combat Hostiles . | . . . Parts Melted . | . . . Heat Transferred 100 | . 100 . Parts Sabotaged . | . . . Parts Stolen . | . . . Parts Stripped . | . . . Power Chain Reactions 1 | . 1 . Missiles Intercepted . | . . . Alert | -11 -10 -10 ------- Run | Jun Mat Min Peak Influence 334 | 5 334 61 Initial 61 | . 3 61 Average 114 | 1 124 57 Maximum Alert Level 1 | . 1 . Low Security (%) 81 | 100 79 100 Level 1 18 | . 20 . Level 2 . | . . . Level 3 . | . . . Level 4 . | . . . Level 5 . | . . . High Security . | . . . Max Security . | . . . Squads Dispatched 1 | . 1 . Investigation . | . . . Extermination . | . . . Reinforcement 1 | . 1 . Assault . | . . . Garrison . | . . . Intercept . | . . . Searches Triggered . | . . . Construction Impeded . | . . . Haulers Reinforced . | . . . Active Scanning Responses . | . . . Cargo Convoy Interrupts . | . . . Stealth | -11 -10 -10 --------- Run | Jun Mat Min Distress Signals 2 | . 2 . Communications Jammed . | . . . Distress Signals . | . . . Times Spotted 26 | . 20 6 Peak Tracking Total 4 | . 4 4 Tactical Retreats 1 | . 1 . Traps | -11 -10 -10 ------- Run | Jun Mat Min Traps Triggered 1 | . 1 . Indirectly . | . . . Trap Hack Attempts . | . . . Triggered . | . . . Disarmed . | . . . Reprogrammed . | . . . Reused . | . . . Traps Extracted . | . . . Installed . | . . . Triggered . | . . . Machines | -11 -10 -10 ---------- Run | Jun Mat Min Machines Disabled 4 | . 4 . Max in Single Turn 2 | . 2 . Machines Repaired . | . . . Machines Sabotaged . | . . . Overloaded Fab Kills . | . . . Hacking | -11 -10 -10 --------- Run | Jun Mat Min Machines Accessed 8 | . 8 . Terminals 7 | . 7 . Fabricators . | . . . Repair Stations 1 | . 1 . Recycling Units . | . . . Scanalyzers . | . . . Garrison Access . | . . . Total Hacks 23 | . 23 . Successful 15 | . 15 . Failed 8 | . 8 . Catastrophic . | . . . Database Lockouts . | . . . Manual 15 | . 15 . Terminals 20 | . 20 . Fabricators . | . . . Repair Stations 3 | . 3 . Recycling Units . | . . . Scanalyzers . | . . . Garrison Access . | . . . Terminal Hacks 10 | . 10 . Branch Access Points 1 | . 1 . Terminal Index 1 | . 1 . Unreport Threat 3 | . 3 . Locate Traps 1 | . 1 . Hauler Manifests 1 | . 1 . Zone Layout 3 | . 3 . Fabricator Hacks . | . . . Repair Station Hacks 2 | . 2 . Scan Component 1 | . 1 . Repair 1 | . 1 . Recycling Unit Hacks . | . . . Scanalyzer . | . . . Garrison Access Hacks . | . . . Unauthorized Hacks 3 | . 3 . Terminals 3 | . 3 . Botnet 3 | . 3 . Fabricators . | . . . Repair Stations . | . . . Recycling Units . | . . . Scanalyzers . | . . . Garrison Access . | . . . Data Cores Recovered . | . . . Used . | . . . Hacking Detections 6 | . 6 . Full Trace Events . | . . . Feedback Events . | . . . Feedback Blocked . | . . . Robot Schematics Acquired . | . . . Robots Built . | . . . Authchips . | . . . Time . | . . . Total Robot Build Rating . | . . . Part Schematics Acquired . | . . . Parts Built . | . . . Authchips . | . . . Time . | . . . Total Part Build Rating . | . . . Parts Repaired 1 | . 1 . Time 13 | . 13 . Parts Recycled . | . . . Recycled Matter . | . . . Retrieved Matter . | . . . Retrieved Components . | . . . Parts Scanalyzed . | . . . Part Schematics Acquired . | . . . Parts Damaged . | . . . Bothacking | -11 -10 -10 ------------ Run | Jun Mat Min Used RIF Installer . | . . . Robots Hacked . | . . . Non-combat . | . . . Combat . | . . . Robot Hacks Applied . | . . . Relay Couplers Released . | . . . Fabnet Peak Effective % . | . . . Robots Rewired . | . . . Allies Hacked . | . . . Hacks Repelled . | . . . Allies | -11 -10 -10 -------- Run | Jun Mat Min Total Allies . | . . . Largest Group . | . . . Highest-Rated Group . | . . . Highest-Rated Ally . | . . . Total Orders . | . . . Ally Attacks . | . . . Total Damage . | . . . Kills . | . . . Allies Corrupted . | . . . Allies Melted . | . . . Intel | -11 -10 -10 ------- Run | Jun Mat Min Robot Analysis Total . | . . . Derelict Logs Recovered . | . . . Drone Launches . | . . . Drone Recoveries . | . . . Exploration | -11 -10 -10 ------------- Run | Jun Mat Min Turns Passed 1220 | 67 1100 53 Spaces Moved 833 | 50 757 26 Core 4 | 4 . . Treads . | . . . Legs 578 | . 552 26 Wheels 251 | 46 205 . Hover . | . . . Flight . | . . . Fastest Speed 50 | 50 80 120 Average Speed 110 | 80 110 176 Slowest Speed 190 | 95 190 190 Overloaded Moves . | . . . Propulsion Burnouts . | . . . Robots Hopped . | . . . Cave-ins Triggered . | . . . Exploration Rate (%) 36 | 4 94 11 Regions Visited 2 Branch Regions 1 Pre-discovered Areas . | . . . Known Exits Taken 1 | . 1 . Unknown Exits Taken 1 | 1 . . Scrap Searched . | . . . Spaces Dug 5 | . 5 . Terrain Destroyed 55 | . 55 . Melee . | . . . Projectile 6 | . 6 . AOE 49 | . 49 . Terrain Rammed . | . . . Walls Destroyed . | . . . Machines Disabled . | . . . Actions | -11 -10 -10 --------- Run | Jun Mat Min Total 1021 | 70 921 30 Wait 75 | 6 69 . Move 831 | 49 756 26 Hop . | . . . Pick Up 17 | 7 10 . Fast Attach 11 | 6 5 . Attach 2 | . 2 . Detach . | . . . Swap 15 | . 15 . Drop 12 | . 12 . Fire 54 | 2 48 4 Melee . | . . . Ram . | . . . Kick 4 | . 4 . Crush . | . . . Escape Stasis . | . . . Rewire . | . . . Trap . | . . . Miscellaneous . | . . . Route ------- -11/Junkyard -10/Materials (discovered 4 exits: [*Mat x3] / *Min) -10/Mines History --------- Turn | Location | Event 23 | -11/Junkyard | Discovered new exit (range 15) 68 | -11/Junkyard | Entered Materials 113 | -10/Materials | Identified exit to Mines 197 | -10/Materials | Discovered new exit (range 13) 252 | -10/Materials | Discovered new exit (range 18) 322 | -10/Materials | Build established: Mutant 842 | -10/Materials | Discovered new exit (range 8) 1148 | -10/Materials | Repaired EM Pulse Gun 1168 | -10/Materials | Entered Mines 1188 | -10/Mines | Assembled infested the area 1217 | -10/Mines | Core integrity fell below 50% 1220 | -10/Mines | Core integrity fell below 20% 1221 | -10/Mines | Destroyed by D-53 Grenadier with Mini Grenade Launcher Last Messages --------------- Repairing EM Pulse Gun... ETC: 13 01148_ Repair station completes EM Pulse Gun repairs. 01148_ Acquired EM Pulse Gun. LOCATION=MINES GOAL=ESCAPE Something is scanning the area. 01188_ ALERT: Infestation in the mines, dispatching Demolisher response squad. 01190_ System corrupted: Component data lost. 01207_ C-30 ARC bursts open, deploying its payload. 01207_ D-53 Grenadier unfolds itself. 01208_ as-55456 destroyed. 01208_ Heat Sink destroyed. 01208_ as-69392 destroyed. 01210_ System corrupted: Matter fused (-7). 01212_ as-98036 destroyed. 01212_ T-07 Excavator destroyed. 01212_ as-77254 destroyed. 01214_ Grenade Launcher destroyed. Map ----- +----------------------------------------------------+ | ?????????????????????????????????????????????????? | | ?????????????????????????????????????????????????? | | ?????????????????????????????????????????????????? | | ?????????????????????????????????????????????????? | | ?????????????????????????????????????????????????? | | ?????????????????????????????????????????????????? | | ?????????????????????????????????????????????????? | | ????????????????????#????????????????????????????? | | ????????????????????# ???????????????????????????? | | ????????????????????# ???????????????????????????? | | ?????????????? ??#### "??????????????????????????? | | ?????????????? ## "%??????????????????????????? | | ???????????????? "#?????????????????????????? | | ????????????????? $ #????????????????????????? | | ??????????????????# ######??????????????????? | | ???????????????????# ???????????????????? | | ????????????????????# #???????????????????? | | ?????????????????????? #???????????????????? | | ??????????????????????? dd #####????????????????? | | ???????????????????????? #????????????????? | | ?????????##????????????? ##???????????????? | | ????????## ?????######## ######??????????? | | ????????# ???## # ?????? | | ??????### ### ## ##???????????? | | ????? #????????????????? | | ??????????# @ #????????????????? | | ??????????## ###????????????????? | | ???????????## # #??????????????????? | | ????????????# ## ##??????????????????? | | ????????????# ##???????????????????? | | ???????????# #????????????????????? | | ???????????# #############????????????????????? | | ???????????## #?????????????????????????????????? | | ????????????###??????????????????????????????????? | | ?????????????????????????????????????????????????? | | ?????????????????????????????????????????????????? | | ?????????????????????????????????????????????????? | | ?????????????????????????????????????????????????? | | ?????????????????????????????????????????????????? | | ?????????????????????????????????????????????????? | | ?????????????????????????????????????????????????? | | | | | | | | | | | | | | | | | | | +----------------------------------------------------+ Best States ------------- Heat Dissipation 35 Energy Generation 10 Energy Capacity 250 Matter Stores 300 Matter Capacity 300 Sight Range 16 Robot Scan Range 14 Terrain Scan Density 10 Evasion (%) 55 Item Schematics ----------------- None Robot Schematics ------------------ None Fabricated ------------ Nothing Alien Tech Used ----------------- None Achievements -------------- None Challenges ------------ None Game ------ Seed BackupRestorationGravjet Manual? 0 Play Time 00:20:12 Cumulative 167.6 hours Start 2023.06.25 @ 11:58:30 End 2023.06.25 @ 12:19:33 Sessions 1 Manual Loads 0 Difficulty Rogue Special Mode None Game No. 106 Rogue 87 Adventurer 16 Explorer 3 Win Type - Total 6 Types 5/0/1/0/0/0/0/0/0 Lore% 59 Gallery% 61 Achievement% 52 Wizard Run 0 Options --------- ASCII 1 Keyboard 1 Movement Vi Keybinds 0 Fullscreen 0 Font 16/Terminus Map View 76x50 Tactical HUD 1 Map Filters NONE Filters NONE Steam X RUN: a5a0f621-60b9-4247-978e-11c9017e433a